{"text_format":"1","workbook":"xlsx","n_sheets":2,"sheets":["Principal","Main"],"not_rendered":{"charts":0,"images":0,"macros":1,"external_links":0,"defined_names":1,"comments":0,"pivot_tables":0},"unopened":[],"bounds":{"document_bytes":16777216,"sheet_cells":100000,"rows_first":2000,"rows_last":500,"rows_between":2000,"halvings":0,"cell_chars":16384,"cell_head_chars":4096},"cells_cut":0,"cells_raw":0,"read":"whole","date_system":"1900"}

{"sheet":"Principal","index":0,"n_rows":7,"n_cols":9,"rows_kept":7,"cut":false,"hidden":false,"merged":[]}
[]
["م","العملاء","الإجمالى","الواصل","المتبقي","عدد الكميات","تاريخ آخر سداد","عام","حالة السداد"]
[0,"Main",{"$f":"IF(B3<>\"\",IFERROR(INDIRECT($B3&\"!I2\"),\"\"),\"\")","v":8500},{"$f":"IF(B3<>\"\",IFERROR(INDIRECT($B3&\"!C2\"),\"\"),\"\")","v":0},{"$f":"IF(B3=\"\",\"\",IFERROR(C3-D3,\"\"))","v":8500},{"$f":"IF(B3<>\"\",IFERROR(INDIRECT($B3&\"!K2\"),\"\"),\"\")","v":0},{"$f":"IF(B3<>\"\",IFERROR(INDIRECT($B3&\"!O2\"),\"\"),\"\")","v":"تاريخ السداد"}]
[1,null,{"$f":"IF(B4<>\"\",IFERROR(INDIRECT($B4&\"!I2\"),\"\"),\"\")","v":""},{"$f":"IF(B4<>\"\",IFERROR(INDIRECT($B4&\"!C2\"),\"\"),\"\")","v":""},{"$f":"IF(B4=\"\",\"\",IFERROR(C4-D4,\"\"))","v":""},{"$f":"IF(B4<>\"\",IFERROR(INDIRECT($B4&\"!K2\"),\"\"),\"\")","v":""},{"$f":"IF(B4<>\"\",IFERROR(INDIRECT($B4&\"!O2\"),\"\"),\"\")","v":""}]
[2,null,"","","","",""]
[3,null,"","","","",""]
[4,null,"","","","",""]

{"sheet":"Main","index":1,"n_rows":249,"n_cols":18,"rows_kept":249,"cut":false,"hidden":false,"merged":[[0,0,0,4],[1,14,1,15],[0,16,0,17]]}
[null,null,null,null,null,null,null,null,null,null,null,null,null,null,null,null,"العملاء"]
[null,"موكا",{"$f":"SUBTOTAL(9,C4:C248)","v":0},null,null,null,{"$f":"SUBTOTAL(9,C4:C248)","v":0},{"$f":"I2-G2","v":8500},{"$f":"SUBTOTAL(9,I4:I248)","v":8500},{"$f":"SUBTOTAL(9,J4:J248)","v":4950},{"$f":"SUBTOTAL(9,K4:K248)","v":0},null,null,null,{"$f":"OFFSET($E$1,COUNTA($E:$E)+1,0)","v":"تاريخ السداد"}]
["م","درويش","القسط","السند","تاريخ السداد","تاريخ الاستلام","الواصل","المتبقي","بيع الكميه","شراء الكمية","الكميات","العقد","تاريخ ابتداء","قيمة القسط","اسم الكفيل","صفحات الدفتر","ملاحظلات","الرصيد"]
[1,null,null,null,null,null,{"$f":"C4","v":0},{"$f":"I$4-G4","v":8500},8500,4950,null,null,null,null,null,null,null,{"$f":"I4-C4","v":8500}]
[2,null,null,null,null,null,{"$f":"G4+C5","v":0},{"$f":"I$4-G5","v":8500},null,null,null,null,null,null,null,null,null,{"$f":"R4+I5-C5","v":8500}]
[3,null,null,null,null,null,{"$f":"G5+C6","v":0},{"$f":"I$4-G6","v":8500},null,null,null,null,null,null,null,null,null,8500]
[4,null,null,null,null,null,0,8500,null,null,null,null,null,null,null,null,null,8500]
[5,null,null,null,null,null,0,8500,null,null,null,null,null,null,null,null,null,8500]
[6,null,null,null,null,null,0,8500,null,null,null,null,null,null,null,null,null,8500]
[7,null,null,null,null,null,0,8500,null,null,null,null,null,null,null,null,null,8500]
[8,null,null,null,null,null,0,8500,null,null,null,null,null,null,null,null,null,8500]
[9,null,null,null,null,null,0,8500,null,null,null,null,null,null,null,null,null,8500]
[10,null,null,null,null,null,{"$f":"G12+C13","v":0},8500,null,null,null,null,null,null,null,null,null,8500]
[11,null,null,null,null,null,{"$f":"G13+C14","v":0},8500,null,null,null,null,null,null,null,null,null,8500]
[12,null,null,null,null,null,{"$f":"G14+C15","v":0},8500,null,null,null,null,null,null,null,null,null,8500]
[null,null,null,null,null,null,null,null,null,null,null,null,null,null,null,null,null,8500]
[1,null,0,null,null,null,null,null,null,null,null,null,null,null,null,null,null,8500]
[null,null,null,null,null,null,null,null,null,null,null,null,null,null,null,null,null,8500]
[null,null,null,null,null,null,null,null,null,null,null,null,null,null,null,null,null,8500]
[null,null,null,null,null,null,null,null,null,null,null,null,null,null,null,null,null,8500]
[null,null,null,null,null,null,null,null,null,null,null,null,null,null,null,null,null,8500]
[null,null,null,null,null,null,null,null,null,null,null,null,null,null,null,null,null,8500]
[null,null,null,null,null,null,null,null,null,null,null,null,null,null,null,null,null,8500]
[null,null,null,null,null,null,null,null,null,null,null,null,null,null,null,null,null,8500]
[null,null,null,null,null,null,null,null,null,null,null,null,null,null,null,null,null,8500]
[null,null,null,null,null,null,null,null,null,null,null,null,null,null,null,null,null,8500]
[null,null,null,null,null,null,null,null,null,null,null,null,null,null,null,null,null,8500]
[null,null,null,null,null,null,null,null,null,null,null,null,null,null,null,null,null,8500]
[null,null,null,null,null,null,null,null,null,null,null,null,null,null,null,null,null,8500]
[null,null,null,null,null,null,null,null,null,null,null,null,null,null,null,null,null,8500]
[null,null,null,null,null,null,null,null,null,null,null,null,null,null,null,null,null,8500]
[null,null,null,null,null,null,null,null,null,null,null,null,null,null,null,null,null,8500]
[null,null,null,null,null,null,null,null,null,null,null,null,null,null,null,null,null,8500]
[null,null,null,null,null,null,null,null,null,null,null,null,null,null,null,null,null,8500]
[null,null,null,null,null,null,null,null,null,null,null,null,null,null,null,null,null,8500]
[null,null,null,null,null,null,null,null,null,null,null,null,null,null,null,null,null,8500]
[null,null,null,null,null,null,null,null,null,null,null,null,null,null,null,null,null,8500]
[null,null,null,null,null,null,null,null,null,null,null,null,null,null,null,null,null,8500]
[null,null,null,null,null,null,null,null,null,null,null,null,null,null,null,null,null,8500]
[null,null,null,null,null,null,null,null,null,null,null,null,null,null,null,null,null,8500]
[null,null,null,null,null,null,null,null,null,null,null,null,null,null,null,null,null,8500]
[null,null,null,null,null,null,null,null,null,null,null,null,null,null,null,null,null,8500]
[null,null,null,null,null,null,null,null,null,null,null,null,null,null,null,null,null,8500]
[null,null,null,null,null,null,null,null,null,null,null,null,null,null,null,null,null,8500]
[null,null,null,null,null,null,null,null,null,null,null,null,null,null,null,null,null,8500]
[null,null,null,null,null,null,null,null,null,null,null,null,null,null,null,null,null,8500]
[null,null,null,null,null,null,null,null,null,null,null,null,null,null,null,null,null,8500]
[null,null,null,null,null,null,null,null,null,null,null,null,null,null,null,null,null,8500]
[null,null,null,null,null,null,null,null,null,null,null,null,null,null,null,null,null,8500]
[null,null,null,null,null,null,null,null,null,null,null,null,null,null,null,null,null,8500]
[null,null,null,null,null,null,null,null,null,null,null,null,null,null,null,null,null,8500]
[null,null,null,null,null,null,null,null,null,null,null,null,null,null,null,null,null,8500]
[null,null,null,null,null,null,null,null,null,null,null,null,null,null,null,null,null,8500]
[null,null,null,null,null,null,null,null,null,null,null,null,null,null,null,null,null,8500]
[null,null,0,null,null,null,null,null,null,null,null,null,null,null,null,null,null,8500]
[null,null,0,null,null,null,null,null,null,null,null,null,null,null,null,null,null,8500]
[null,null,0,null,null,null,null,null,null,null,null,null,null,null,null,null,null,8500]
[null,null,null,null,null,null,null,null,null,null,null,null,null,null,null,null,null,8500]
[null,null,null,null,null,null,null,null,null,null,null,null,null,null,null,null,null,8500]
[null,null,null,null,null,null,null,null,null,null,null,null,null,null,null,null,null,8500]
[null,null,0,null,null,null,null,null,null,null,null,null,null,null,null,null,null,8500]
[null,null,0,null,null,null,null,null,null,null,null,null,null,null,null,null,null,8500]
[null,null,0,null,null,null,null,null,null,null,null,null,null,null,null,null,null,8500]
[null,null,0,null,null,null,null,null,null,null,null,null,null,null,null,null,null,8500]
[null,null,null,null,null,null,null,null,null,null,null,null,null,null,null,null,null,8500]
[null,null,null,null,null,null,null,null,null,null,null,null,null,null,null,null,null,8500]
[null,null,null,null,null,null,null,null,null,null,null,null,null,null,null,null,null,8500]
[null,null,null,null,null,null,null,null,null,null,null,null,null,null,null,null,null,8500]
[null,null,null,null,null,null,null,null,null,null,null,null,null,null,null,null,null,{"$f":"R68+I69-C69","v":8500}]
[null,null,null,null,null,null,null,null,null,null,null,null,null,null,null,null,null,8500]
[null,null,null,null,null,null,null,null,null,null,null,null,null,null,null,null,null,8500]
[null,null,null,null,null,null,null,null,null,null,null,null,null,null,null,null,null,8500]
[null,null,null,null,null,null,null,null,null,null,null,null,null,null,null,null,null,8500]
[null,null,null,null,null,null,null,null,null,null,null,null,null,null,null,null,null,8500]
[null,null,null,null,null,null,null,null,null,null,null,null,null,null,null,null,null,8500]
[null,null,null,null,null,null,null,null,null,null,null,null,null,null,null,null,null,8500]
[null,null,null,null,null,null,null,null,null,null,null,null,null,null,null,null,null,8500]
[null,null,null,null,null,null,null,null,null,null,null,null,null,null,null,null,null,8500]
[null,null,null,null,null,null,null,null,null,null,null,null,null,null,null,null,null,8500]
[null,null,null,null,null,null,null,null,null,null,null,null,null,null,null,null,null,8500]
[null,null,null,null,null,null,null,null,null,null,null,null,null,null,null,null,null,8500]
[null,null,null,null,null,null,null,null,null,null,null,null,null,null,null,null,null,8500]
[null,null,null,null,null,null,null,null,null,null,null,null,null,null,null,null,null,8500]
[null,null,null,null,null,null,null,null,null,null,null,null,null,null,null,null,null,8500]
[null,null,null,null,null,null,null,null,null,null,null,null,null,null,null,null,null,8500]
[null,null,null,null,null,null,null,null,null,null,null,null,null,null,null,null,null,8500]
[null,null,null,null,null,null,null,null,null,null,null,null,null,null,null,null,null,8500]
[null,null,null,null,null,null,null,null,null,null,null,null,null,null,null,null,null,8500]
[null,null,null,null,null,null,null,null,null,null,null,null,null,null,null,null,null,8500]
[null,null,null,null,null,null,null,null,null,null,null,null,null,null,null,null,null,8500]
[null,null,null,null,null,null,null,null,null,null,null,null,null,null,null,null,null,8500]
[null,null,null,null,null,null,null,null,null,null,null,null,null,null,null,null,null,8500]
[null,null,null,null,null,null,null,null,null,null,null,null,null,null,null,null,null,8500]
[null,null,null,null,null,null,null,null,null,null,null,null,null,null,null,null,null,8500]
[null,null,null,null,null,null,null,null,null,null,null,null,null,null,null,null,null,8500]
[null,null,null,null,null,null,null,null,null,null,null,null,null,null,null,null,null,8500]
[null,null,null,null,null,null,null,null,null,null,null,null,null,null,null,null,null,8500]
[null,null,null,null,null,null,null,null,null,null,null,null,null,null,null,null,null,8500]
[null,null,null,null,null,null,null,null,null,null,null,null,null,null,null,null,null,8500]
[null,null,null,null,null,null,null,null,null,null,null,null,null,null,null,null,null,8500]
[null,null,null,null,null,null,null,null,null,null,null,null,null,null,null,null,null,8500]
[null,null,null,null,null,null,null,null,null,null,null,null,null,null,null,null,null,8500]
[null,null,null,null,null,null,null,null,null,null,null,null,null,null,null,null,null,8500]
[null,null,null,null,null,null,null,null,null,null,null,null,null,null,null,null,null,8500]
[null,null,null,null,null,null,null,null,null,null,null,null,null,null,null,null,null,8500]
[null,null,null,null,null,null,null,null,null,null,null,null,null,null,null,null,null,8500]
[null,null,null,null,null,null,null,null,null,null,null,null,null,null,null,null,null,8500]
[null,null,null,null,null,null,null,null,null,null,null,null,null,null,null,null,null,8500]
[null,null,null,null,null,null,null,null,null,null,null,null,null,null,null,null,null,8500]
[null,null,null,null,null,null,null,null,null,null,null,null,null,null,null,null,null,8500]
[null,null,null,null,null,null,null,null,null,null,null,null,null,null,null,null,null,8500]
[null,null,null,null,null,null,null,null,null,null,null,null,null,null,null,null,null,8500]
[null,null,null,null,null,null,null,null,null,null,null,null,null,null,null,null,null,8500]
[null,null,null,null,null,null,null,null,null,null,null,null,null,null,null,null,null,8500]
[null,null,null,null,null,null,null,null,null,null,null,null,null,null,null,null,null,8500]
[null,null,null,null,null,null,null,null,null,null,null,null,null,null,null,null,null,8500]
[null,null,null,null,null,null,null,null,null,null,null,null,null,null,null,null,null,8500]
[null,null,null,null,null,null,null,null,null,null,null,null,null,null,null,null,null,8500]
[null,null,null,null,null,null,null,null,null,null,null,null,null,null,null,null,null,8500]
[null,null,null,null,null,null,null,null,null,null,null,null,null,null,null,null,null,8500]
[null,null,null,null,null,null,null,null,null,null,null,null,null,null,null,null,null,8500]
[null,null,null,null,null,null,null,null,null,null,null,null,null,null,null,null,null,8500]
[null,null,null,null,null,null,null,null,null,null,null,null,null,null,null,null,null,8500]
[null,null,null,null,null,null,null,null,null,null,null,null,null,null,null,null,null,8500]
[null,null,null,null,null,null,null,null,null,null,null,null,null,null,null,null,null,8500]
[null,null,null,null,null,null,null,null,null,null,null,null,null,null,null,null,null,8500]
[null,null,null,null,null,null,null,null,null,null,null,null,null,null,null,null,null,8500]
[null,null,null,null,null,null,null,null,null,null,null,null,null,null,null,null,null,8500]
[null,null,null,null,null,null,null,null,null,null,null,null,null,null,null,null,null,8500]
[null,null,null,null,null,null,null,null,null,null,null,null,null,null,null,null,null,8500]
[null,null,null,null,null,null,null,null,null,null,null,null,null,null,null,null,null,8500]
[null,null,null,null,null,null,null,null,null,null,null,null,null,null,null,null,null,8500]
[null,null,null,null,null,null,null,null,null,null,null,null,null,null,null,null,null,{"$f":"R132+I133-C133","v":8500}]
[null,null,null,null,null,null,null,null,null,null,null,null,null,null,null,null,null,8500]
[null,null,null,null,null,null,null,null,null,null,null,null,null,null,null,null,null,8500]
[null,null,null,null,null,null,null,null,null,null,null,null,null,null,null,null,null,8500]
[null,null,null,null,null,null,null,null,null,null,null,null,null,null,null,null,null,8500]
[null,null,null,null,null,null,null,null,null,null,null,null,null,null,null,null,null,8500]
[null,null,null,null,null,null,null,null,null,null,null,null,null,null,null,null,null,8500]
[null,null,null,null,null,null,null,null,null,null,null,null,null,null,null,null,null,8500]
[null,null,null,null,null,null,null,null,null,null,null,null,null,null,null,null,null,8500]
[null,null,null,null,null,null,null,null,null,null,null,null,null,null,null,null,null,8500]
[null,null,null,null,null,null,null,null,null,null,null,null,null,null,null,null,null,8500]
[null,null,null,null,null,null,null,null,null,null,null,null,null,null,null,null,null,8500]
[null,null,null,null,null,null,null,null,null,null,null,null,null,null,null,null,null,8500]
[null,null,null,null,null,null,null,null,null,null,null,null,null,null,null,null,null,8500]
[null,null,null,null,null,null,null,null,null,null,null,null,null,null,null,null,null,8500]
[null,null,null,null,null,null,null,null,null,null,null,null,null,null,null,null,null,8500]
[null,null,null,null,null,null,null,null,null,null,null,null,null,null,null,null,null,8500]
[null,null,null,null,null,null,null,null,null,null,null,null,null,null,null,null,null,8500]
[null,null,null,null,null,null,null,null,null,null,null,null,null,null,null,null,null,8500]
[null,null,null,null,null,null,null,null,null,null,null,null,null,null,null,null,null,8500]
[null,null,null,null,null,null,null,null,null,null,null,null,null,null,null,null,null,8500]
[null,null,null,null,null,null,null,null,null,null,null,null,null,null,null,null,null,8500]
[null,null,null,null,null,null,null,null,null,null,null,null,null,null,null,null,null,8500]
[null,null,null,null,null,null,null,null,null,null,null,null,null,null,null,null,null,8500]
[null,null,null,null,null,null,null,null,null,null,null,null,null,null,null,null,null,8500]
[null,null,null,null,null,null,null,null,null,null,null,null,null,null,null,null,null,8500]
[null,null,null,null,null,null,null,null,null,null,null,null,null,null,null,null,null,8500]
[null,null,null,null,null,null,null,null,null,null,null,null,null,null,null,null,null,8500]
[null,null,null,null,null,null,null,null,null,null,null,null,null,null,null,null,null,8500]
[null,null,null,null,null,null,null,null,null,null,null,null,null,null,null,null,null,8500]
[null,null,null,null,null,null,null,null,null,null,null,null,null,null,null,null,null,8500]
[null,null,null,null,null,null,null,null,null,null,null,null,null,null,null,null,null,8500]
[null,null,null,null,null,null,null,null,null,null,null,null,null,null,null,null,null,8500]
[null,null,null,null,null,null,null,null,null,null,null,null,null,null,null,null,null,8500]
[null,null,null,null,null,null,null,null,null,null,null,null,null,null,null,null,null,8500]
[null,null,null,null,null,null,null,null,null,null,null,null,null,null,null,null,null,8500]
[null,null,null,null,null,null,null,null,null,null,null,null,null,null,null,null,null,8500]
[null,null,null,null,null,null,null,null,null,null,null,null,null,null,null,null,null,8500]
[null,null,null,null,null,null,null,null,null,null,null,null,null,null,null,null,null,8500]
[null,null,null,null,null,null,null,null,null,null,null,null,null,null,null,null,null,8500]
[null,null,null,null,null,null,null,null,null,null,null,null,null,null,null,null,null,8500]
[null,null,null,null,null,null,null,null,null,null,null,null,null,null,null,null,null,8500]
[null,null,null,null,null,null,null,null,null,null,null,null,null,null,null,null,null,8500]
[null,null,null,null,null,null,null,null,null,null,null,null,null,null,null,null,null,8500]
[null,null,null,null,null,null,null,null,null,null,null,null,null,null,null,null,null,8500]
[null,null,null,null,null,null,null,null,null,null,null,null,null,null,null,null,null,8500]
[null,null,null,null,null,null,null,null,null,null,null,null,null,null,null,null,null,8500]
[null,null,null,null,null,null,null,null,null,null,null,null,null,null,null,null,null,8500]
[null,null,null,null,null,null,null,null,null,null,null,null,null,null,null,null,null,8500]
[null,null,null,null,null,null,null,null,null,null,null,null,null,null,null,null,null,8500]
[null,null,null,null,null,null,null,null,null,null,null,null,null,null,null,null,null,8500]
[null,null,null,null,null,null,null,null,null,null,null,null,null,null,null,null,null,8500]
[null,null,null,null,null,null,null,null,null,null,null,null,null,null,null,null,null,8500]
[null,null,null,null,null,null,null,null,null,null,null,null,null,null,null,null,null,8500]
[null,null,null,null,null,null,null,null,null,null,null,null,null,null,null,null,null,8500]
[null,null,null,null,null,null,null,null,null,null,null,null,null,null,null,null,null,8500]
[null,null,null,null,null,null,null,null,null,null,null,null,null,null,null,null,null,8500]
[null,null,null,null,null,null,null,null,null,null,null,null,null,null,null,null,null,8500]
[null,null,null,null,null,null,null,null,null,null,null,null,null,null,null,null,null,8500]
[null,null,null,null,null,null,null,null,null,null,null,null,null,null,null,null,null,8500]
[null,null,null,null,null,null,null,null,null,null,null,null,null,null,null,null,null,8500]
[null,null,null,null,null,null,null,null,null,null,null,null,null,null,null,null,null,8500]
[null,null,null,null,null,null,null,null,null,null,null,null,null,null,null,null,null,8500]
[null,null,null,null,null,null,null,null,null,null,null,null,null,null,null,null,null,8500]
[null,null,null,null,null,null,null,null,null,null,null,null,null,null,null,null,null,{"$f":"R196+I197-C197","v":8500}]
[null,null,null,null,null,null,null,null,null,null,null,null,null,null,null,null,null,8500]
[null,null,null,null,null,null,null,null,null,null,null,null,null,null,null,null,null,8500]
[null,null,null,null,null,null,null,null,null,null,null,null,null,null,null,null,null,8500]
[null,null,null,null,null,null,null,null,null,null,null,null,null,null,null,null,null,8500]
[null,null,null,null,null,null,null,null,null,null,null,null,null,null,null,null,null,8500]
[null,null,null,null,null,null,null,null,null,null,null,null,null,null,null,null,null,8500]
[null,null,null,null,null,null,null,null,null,null,null,null,null,null,null,null,null,8500]
[null,null,null,null,null,null,null,null,null,null,null,null,null,null,null,null,null,8500]
[null,null,null,null,null,null,null,null,null,null,null,null,null,null,null,null,null,8500]
[null,null,null,null,null,null,null,null,null,null,null,null,null,null,null,null,null,8500]
[null,null,null,null,null,null,null,null,null,null,null,null,null,null,null,null,null,8500]
[null,null,null,null,null,null,null,null,null,null,null,null,null,null,null,null,null,8500]
[null,null,null,null,null,null,null,null,null,null,null,null,null,null,null,null,null,8500]
[null,null,null,null,null,null,null,null,null,null,null,null,null,null,null,null,null,8500]
[null,null,null,null,null,null,null,null,null,null,null,null,null,null,null,null,null,8500]
[null,null,null,null,null,null,null,null,null,null,null,null,null,null,null,null,null,8500]
[null,null,null,null,null,null,null,null,null,null,null,null,null,null,null,null,null,8500]
[null,null,null,null,null,null,null,null,null,null,null,null,null,null,null,null,null,8500]
[null,null,null,null,null,null,null,null,null,null,null,null,null,null,null,null,null,8500]
[null,null,null,null,null,null,null,null,null,null,null,null,null,null,null,null,null,8500]
[null,null,null,null,null,null,null,null,null,null,null,null,null,null,null,null,null,8500]
[null,null,null,null,null,null,null,null,null,null,null,null,null,null,null,null,null,{"$f":"R29+I219-C219","v":8500}]
[null,null,null,null,null,null,null,null,null,null,null,null,null,null,null,null,null,{"$f":"R219+I220-C220","v":8500}]
[null,null,null,null,null,null,null,null,null,null,null,null,null,null,null,null,null,8500]
[null,null,null,null,null,null,null,null,null,null,null,null,null,null,null,null,null,8500]
[null,null,null,null,null,null,null,null,null,null,null,null,null,null,null,null,null,8500]
[null,null,null,null,null,null,null,null,null,null,null,null,null,null,null,null,null,8500]
[null,null,null,null,null,null,null,null,null,null,null,null,null,null,null,null,null,8500]
[null,null,null,null,null,null,null,null,null,null,null,null,null,null,null,null,null,8500]
[null,null,null,null,null,null,null,null,null,null,null,null,null,null,null,null,null,8500]
[null,null,null,null,null,null,null,null,null,null,null,null,null,null,null,null,null,8500]
[null,null,null,null,null,null,null,null,null,null,null,null,null,null,null,null,null,8500]
[null,null,null,null,null,null,null,null,null,null,null,null,null,null,null,null,null,8500]
[null,null,null,null,null,null,null,null,null,null,null,null,null,null,null,null,null,8500]
[null,null,null,null,null,null,null,null,null,null,null,null,null,null,null,null,null,8500]
[null,null,null,null,null,null,null,null,null,null,null,null,null,null,null,null,null,8500]
[null,null,null,null,null,null,null,null,null,null,null,null,null,null,null,null,null,8500]
[null,null,null,null,null,null,null,null,null,null,null,null,null,null,null,null,null,8500]
[null,null,null,null,null,null,null,null,null,null,null,null,null,null,null,null,null,8500]
[null,null,null,null,null,null,null,null,null,null,null,null,null,null,null,null,null,8500]
[null,null,null,null,null,null,null,null,null,null,null,null,null,null,null,null,null,8500]
[null,null,null,null,null,null,null,null,null,null,null,null,null,null,null,null,null,8500]
[null,null,null,null,null,null,null,null,null,null,null,null,null,null,null,null,null,8500]
[null,null,null,null,null,null,null,null,null,null,null,null,null,null,null,null,null,8500]
[null,null,null,null,null,null,null,null,null,null,null,null,null,null,null,null,null,8500]
[null,null,null,null,null,null,null,null,null,null,null,null,null,null,null,null,null,8500]
[null,null,null,null,null,null,null,null,null,null,null,null,null,null,null,null,null,8500]
[null,null,null,null,null,null,null,null,null,null,null,null,null,null,null,null,null,8500]
[null,null,null,null,null,null,null,null,null,null,null,null,null,null,null,null,null,8500]
[null,null,null,null,null,null,null,null,null,null,null,null,null,null,null,null,null,8500]
[null,null,null,null,null,null,null,null,null,null,null,null,null,null,null,null,null,8500]
["TOTAL",null,{"$f":"SUM(C4:C248)","v":0},null,null,null,null,{"$f":"SUM(H4:H248)","v":102000},{"$f":"SUM(I4:I248)","v":8500},{"$f":"SUM(J4:J248)","v":4950},{"$f":"SUM(K4:K248)","v":0},null,null,null,null,null,null,{"$f":"SUM(I249-C249)","v":8500}]